bitfinex/quotes_ETHUSD_20250703
["timestamp","ask_amount","ask_price","bid_price","bid_amount"]
[1751570586694,0.02,2593.8,2593.7,4.962]
[1751570587989,0.02,2593.8,2593.7,8.817496]
[1751570588182,0.02,2593.8,2593.7,4.962]
[1751570589473,0.02,2593.8,2593.7,8.817496]
[1751570589893,0.02,2593.8,2593.7,4.962]
[1751570591796,0.02,2593.8,2593.7,5.00055496]
[1751570592283,0.02,2593.8,2593.7,4.962]
[1751570592480,0.02,2593.8,2593.7,8.817496]
[1751570594495,0.02,2593.8,2593.7,4.962]
[1751570594798,0.02,2593.8,2593.7,31.01080863]
[1751570595000,0.02,2593.8,2593.7,30.97225367]
[1751570595200,0.02,2593.8,2593.7,22.639296]
[1751570597871,0.02,2593.8,2593.7,27.409296]
[1751570602332,0.02,2593.8,2593.7,19.611296]
[1751570602627,0.02,2593.8,2593.7,27.407296]
[1751570602831,0.02,2593.8,2593.7,19.611296]
[1751570603017,0.02,2593.8,2593.7,27.407296]
[1751570604034,0.02,2593.8,2593.7,22.758]
[1751570604863,0.02,2593.8,2593.7,26.613496]
[1751570605658,0.02,2593.8,2593.7,12.758]
[1751570605818,0.02,2593.8,2593.7,16.613496]
[1751570606014,0.02,2593.8,2593.7,8.817496]
[1751570610052,0.02,2593.8,2593.7,4.962]
[1751570610253,0.02,2593.8,2593.7,8.817496]
[1751570610956,0.02,2593.8,2593.7,4.962]
[1751570614565,0.02,2593.8,2593.7,8.817496]
[1751570614762,0.02,2593.8,2593.7,4.962]
[1751570619368,0.02,2593.8,2593.7,4.94333491]
[1751570620647,0.02,2593.8,2593.7,8.79883091]
[1751570621385,0.02,2593.8,2593.7,4.94333491]
[1751570621678,0.02,2593.8,2593.7,8.79883091]
[1751570623882,0.02,2593.8,2593.7,4.94333491]
[1751570629901,0.02,2593.8,2593.7,8.79883091]
[1751570630503,0.02,2593.8,2593.7,4.94333491]
[1751570632496,0.02,2593.8,2593.7,8.79883091]
[1751570632994,0.02,2593.8,2593.7,4.94333491]
[1751570635510,0.02,2593.8,2593.7,8.79883091]
[1751570636909,0.02,2593.8,2593.7,4.02883091]
[1751570638812,0.02,2593.8,2593.7,0.17333491]
[1751570641923,0.02,2593.8,2593.7,4.02883091]
[1751570643232,0.02,2593.8,2593.7,0.17333491]
[1751570643988,0.02,2593.8,2593.7,4.02883091]
[1751570649134,0.02,2593.8,2593.7,4.89028587]
[1751570649516,0.02,2593.8,2593.7,4.06738587]
[1751570649716,0.02,2593.8,2593.7,11.82083091]
[1751570651119,0.02,2593.8,2593.7,16.59083091]
[1751570659933,0.02,2593.8,2593.7,27.41353091]
[1751570660447,0.02,2593.8,2593.7,26.59083091]
[1751570661659,0.02,2593.8,2593.7,26.58883091]
[1751570662155,0.02,2593.8,2593.7,4.94333491]
[1751570662461,0.02,2593.8,2593.7,12.73333491]
[1751570664148,0.02,2593.8,2593.7,4.94333491]
[1751570667969,0.02,2593.8,2593.7,8.79883091]
[1751570668369,0.02,2593.8,2593.7,4.94333491]
[1751570671546,4.68243737,2593.8,2593.6,4.77]
[1751570671751,5.53620265,2593.8,2593.6,4.77]
[1751570673073,1.68076528,2593.8,2593.6,4.77]
[1751570673272,0.827,2593.8,2593.6,4.77]
[1751570674272,0.827,2593.8,2593.6,8.62560789]
[1751570674884,0.02,2593.8,2593.6,8.62560789]
[1751570675359,0.02,2593.8,2593.6,4.77]
[1751570675560,0.02,2593.8,2593.6,8.62563685]
[1751570675895,0.02,2593.8,2593.6,4.77]
[1751570678590,0.02,2593.8,2593.6,8.62564315]
[1751570680692,0.02,2593.8,2593.7,4.77]
[1751570709971,4.35754738,2593.8,2593.7,4.77]
[1751570710178,3.85579332,2593.5,2593.4,4.77]
[1751570710472,4.61099332,2593.5,2593.4,4.77]
[1751570711793,5.41180187,2593.5,2593.4,4.77]
[1751570712357,4.61099332,2593.5,2593.4,4.77]
[1751570712566,7.08865604,2593.5,2593.4,4.77]
[1751570712971,3.855942,2593.4,2593.3,0.02]
[1751570713173,13.76202302,2593.4,2593.3,0.02]
[1751570713589,4.628442,2593.4,2593.3,0.02]
[1751570713906,7.72199519,2593.4,2593.3,0.02]
[1751570716869,15.50699519,2593.4,2593.3,0.02]
[1751570719767,7.72199519,2593.4,2593.3,0.02]
[1751570719961,4.628442,2593.4,2593.3,0.02]
[1751570720706,1.0184,2593.8,2593.3,0.02]
[1751570721001,3.85565237,2593.6,2593.3,0.212]
[1751570721896,3.85558484,2593.7,2593.3,0.212]
[1751570722096,3.85558484,2593.7,2593.3,4.982]
[1751570722772,0.212,2593.8,2593.3,5.0205609]
[1751570722970,3.8557166,2593.6,2593.3,4.982]
[1751570723910,3.85558607,2593.7,2593.3,4.982]
[1751570724072,3.85558607,2593.7,2593.3,8.83808612]
[1751570725425,4.06743455,2593.8,2593.3,8.83802989]
[1751570725601,3.85549614,2593.7,2593.3,4.982]
[1751570725919,3.85549614,2593.7,2593.3,5.0205609]
[1751570726084,3.85549614,2593.7,2593.3,8.87663462]
[1751570726286,3.85549614,2593.7,2593.3,8.83807372]
[1751570727615,4.06740819,2593.8,2593.4,3.85592252]
[1751570727791,4.06740819,2593.8,2593.3,8.83801066]
[1751570727998,4.06740819,2593.8,2593.4,4.77]
[1751570728314,0.212,2593.8,2593.5,0.829]
[1751570728699,4.06735478,2593.8,2593.5,0.829]
[1751570729639,3.85552203,2593.7,2593.5,0.829]
[1751570729848,4.06741773,2593.8,2593.5,0.829]
[1751570730238,3.85551634,2593.7,2593.5,0.829]
[1751570730735,0.212,2593.8,2593.5,0.829]
[1751570730736,4.0674309,2593.8,2593.5,0.829]
[1751570730899,3.85549889,2593.7,2593.5,0.829]
[1751570731099,3.85550182,2593.7,2593.5,0.829]
[1751570731299,4.06743053,2593.8,2593.5,0.829]
[1751570732103,3.85550307,2593.7,2593.5,0.829]
[1751570732303,4.06743228,2593.8,2593.5,0.829]
[1751570732505,4.0674198,2593.8,2593.5,0.829]
[1751570733811,0.212,2593.8,2593.5,0.829]
[1751570734017,0.212,2593.8,2593.5,5.599]
[1751570734218,0.212,2593.8,2593.5,9.45479079]
[1751570734429,0.02,2593.8,2593.5,0.829]
[1751570734637,0.02,2593.8,2593.5,1.021]
[1751570736753,0.02,2593.8,2593.5,4.87667014]
[1751570738055,0.02,2593.8,2593.5,1.021]
[1751570738258,0.02,2593.8,2593.5,1.05955793]
[1751570738461,0.02,2593.8,2593.6,3.85557394]
[1751570738827,0.02,2593.8,2593.5,4.91529389]
[1751570739875,0.02,2593.8,2593.6,4.77]
[1751570740063,0.02,2593.8,2593.6,8.62564245]
[1751570740467,0.02,2593.8,2593.6,4.77]
[1751570741688,0.02,2593.8,2593.6,8.62564357]
[1751570742187,0.02,2593.8,2593.6,4.77]
[1751570745773,0.02,2593.8,2593.7,4.77]
[1751570751817,0.02,2593.8,2593.6,4.77]
[1751570752904,0.02,2593.8,2593.6,8.62561336]
[1751570753102,0.02,2593.8,2593.6,4.77]
[1751570757616,0.02,2593.8,2593.7,4.77]
[1751570760412,3.87534736,2593.8,2593.7,4.77]
[1751570763628,3.87534736,2593.8,2593.6,4.77]
[1751570765929,3.855496,2593.7,2593.6,4.77]
[1751570766431,3.87541694,2593.8,2593.6,4.77]
[1751570767613,0.02,2593.8,2593.6,4.77]
[1751570769442,0.02,2593.8,2593.7,4.77]
[1751570773556,3.87534736,2593.8,2593.7,4.77]
[1751570773840,0.02,2593.8,2593.7,4.77]
[1751570775339,3.87534736,2593.8,2593.7,4.77]
[1751570775545,3.87534736,2593.8,2593.6,4.77]
[1751570777549,0.02,2593.8,2593.6,4.77]
[1751570778037,3.87536429,2593.8,2593.6,4.77]
[1751570779558,0.02,2593.8,2593.6,4.77]
[1751570781263,0.02,2593.8,2593.7,4.77]
[1751570782236,3.87534736,2593.8,2593.7,4.77]
[1751570784037,11.49541233,2593.8,2593.7,4.77]
[1751570784233,13.09677964,2593.8,2593.7,4.77]
[1751570787261,3.85586808,2593.5,2593.3,5.0213609]
[1751570787466,3.85586808,2593.5,2593.3,4.9828]
[1751570789773,4.84877003,2593.7,2593.3,4.9828]
[1751570789774,3.85568165,2593.6,2593.3,4.9828]
[1751570790151,3.855798,2593.5,2593.3,4.9828]
[1751570795384,3.85569608,2593.6,2593.3,4.9828]
[1751570797977,4.04759066,2593.7,2593.3,4.9828]
[1751570798568,4.04759066,2593.7,2593.3,8.68464231]
[1751570798772,4.04759066,2593.7,2593.4,0.192]
[1751570799073,4.04759066,2593.7,2593.4,4.962]
[1751570799897,3.87543856,2593.8,2593.4,9.66504144]
[1751570800079,3.87543856,2593.8,2593.4,9.62648202]
[1751570800273,3.87543856,2593.8,2593.4,5.7706]
[1751570800589,3.87543856,2593.8,2593.4,5.80915942]
[1751570802908,3.87534955,2593.8,2593.4,5.7706]
[1751570803093,3.855496,2593.7,2593.4,5.7706]
[1751570803712,3.855496,2593.7,2593.4,4.962]
[1751570805017,3.855496,2593.7,2593.5,4.77]
[1751570806073,3.87539088,2593.8,2593.5,4.77]
[1751570806476,0.02,2593.8,2593.5,4.77]
[1751570806790,3.85563952,2593.7,2593.5,4.77]
[1751570806996,0.82111911,2593.8,2593.5,5.5726]
[1751570807227,0.02,2593.8,2593.5,5.5726]
[1751570807527,3.87536457,2593.8,2593.5,5.5726]
[1751570808000,0.02,2593.8,2593.5,5.5726]
[1751570809006,3.87534814,2593.8,2593.5,5.5726]
[1751570809873,0.02,2593.8,2593.5,5.5726]
[1751570810404,3.87535891,2593.8,2593.5,5.5726]
[1751570810992,3.87535891,2593.8,2593.6,4.77]
[1751570814504,0.02,2593.8,2593.6,4.77]
[1751570815010,3.87536332,2593.8,2593.6,4.77]
[1751570820310,3.855496,2593.7,2593.6,4.77]
[1751570820618,4.21713134,2593.7,2593.6,4.77]
[1751570820800,0.36163534,2593.7,2593.6,4.77]
[1751570827346,0.36163534,2593.7,2593.6,8.62564466]
[1751570827622,0.02,2593.8,2593.7,15.204396]
[1751570827785,0.02,2593.8,2593.7,22.06406629]
[1751570829912,0.02,2593.8,2593.7,15.396396]
[1751570830120,0.02,2593.8,2593.7,16.29991498]
[1751570832524,0.02,2593.8,2593.7,24.07291498]
[1751570833023,0.02,2593.8,2593.7,15.74991498]
[1751570833227,0.02,2593.8,2593.7,23.52191498]
[1751570833629,0.02,2593.8,2593.7,0.192]
[1751570835520,3.87534736,2593.8,2593.4,3.89442768]
[1751570835817,3.87534736,2593.8,2593.5,0.192]
[1751570836024,0.02,2593.8,2593.5,0.192]
[1751570837509,0.02,2593.8,2593.5,4.962]
[1751570838207,3.87535778,2593.8,2593.5,4.962]
[1751570839833,0.02,2593.8,2593.5,4.962]
[1751570842735,0.02,2593.8,2593.5,5.00055793]
[1751570842901,0.02,2593.8,2593.7,3.855496]
[1751570843106,0.02,2593.8,2593.7,9.62825096]
[1751570843305,0.02,2593.8,2593.7,9.589696]
[1751570846033,0.02,2593.8,2593.7,17.361696]
[1751570846844,0.02,2593.8,2593.7,17.911696]
[1751570847029,0.02,2593.8,2593.7,27.911696]
[1751570852643,0.02,2593.8,2593.7,29.798696]
[1751570855358,0.02,2593.8,2593.7,37.728696]
[1751570860056,0.02,2593.8,2593.7,29.798696]
[1751570861750,0.798,2594.9,2594.6,3.85402335]
[1751570861952,0.798,2594.9,2594.8,0.192]
[1751570862538,0.02,2594.9,2594.8,4.04586156]
[1751570862845,0.02,2594.9,2594.8,8.81586156]
[1751570865746,0.02,2594.9,2594.8,9.11085479]
[1751570868564,0.02,2594.9,2594.8,9.86535479]
[1751570870053,0.02,2594.9,2594.8,20.41535479]
[1751570870563,0.02,2594.9,2594.8,15.25699323]
[1751570870740,0.02,2594.9,2594.8,4.962]
[1751570870945,0.8481,2594.9,2594.5,5.74029644]
[1751570871167,4.70183831,2594.9,2594.6,7.96]
[1751570872674,4.70183831,2594.9,2594.7,7.767]
[1751570874766,4.70183831,2594.9,2594.6,7.959]
[1751570877356,3.85387915,2594.8,2594.6,7.959]
[1751570877979,3.85401009,2594.7,2594.6,7.959]
[1751570878349,4.70183877,2594.9,2594.6,7.959]
[1751570878548,0.8481,2594.9,2594.6,7.959]
[1751570878750,3.85386156,2594.8,2594.6,7.959]
[1751570880282,3.85401009,2594.7,2594.6,0.192]
[1751570880467,3.85401009,2594.7,2594.4,4.77]
[1751570880468,0.8042,2594.4,2594.3,0.192]
[1751570880668,3.85466534,2594.3,2594.1,7.767]
[1751570880846,3.85466534,2594.3,2594.2,0.192]
[1751570881053,0.8042,2593.9,2593.7,7.767]
[1751570881246,0.8042,2593.9,2593.8,0.192]
[1751570883562,0.8042,2594.1,2593.8,0.192]
[1751570883765,0.8042,2594.1,2593.8,4.04734261]
[1751570884074,0.8042,2594.1,2593.8,4.08589608]
[1751570884274,0.8042,2594.1,2593.8,5.48561506]
[1751570884586,0.8042,2594.1,2593.8,4.08589608]
[1751570884779,0.8042,2594.1,2593.8,0.23055347]
[1751570884985,0.8042,2594.1,2593.8,4.08581744]
[1751570885161,0.8042,2594.1,2593.9,7.768]
[1751570885776,4.04662451,2594.3,2593.9,7.768]
[1751570885777,0.9673,2594.3,2593.9,11.62319062]
[1751570886090,4.62972059,2594.5,2594.1,3.85487583]
[1751570886279,4.62972059,2594.5,2594.2,4.77]
[1751570886461,0.7753,2594.5,2594.2,4.77]
[1751570886661,4.62962909,2594.5,2594.2,4.77]
[1751570888081,3.85447841,2594.4,2594.2,4.77]
[1751570888461,3.85460432,2594.3,2594.2,4.77]
[1751570888659,4.62700432,2594.3,2594.2,4.77]
[1751570894677,5.03719161,2594.3,2594.2,4.77]
[1751570894876,5.22919161,2594.3,2594.2,4.77]
[1751570896706,3.85519873,2593.9,2593.8,0.192]
[1751570898104,3.85519873,2593.9,2593.8,0.202]
[1751570898301,3.87519873,2593.9,2593.8,0.202]
[1751570902821,3.87519873,2593.9,2593.8,4.972]
[1751570903820,0.02,2593.9,2593.8,4.972]
[1751570904010,0.02,2593.9,2593.8,5.85861854]
[1751570905199,3.87519873,2593.9,2593.8,4.972]
[1751570906288,0.02,2593.9,2593.8,4.972]
[1751570908492,0.02,2593.9,2593.8,0.202]
[1751570910209,0.02,2593.9,2593.8,4.05734736]
[1751570910410,0.02,2593.9,2593.8,0.202]
[1751570910616,3.87519873,2593.9,2593.8,0.202]
[1751570910928,4.73143566,2593.9,2593.8,0.01]
[1751570912315,3.87519873,2593.9,2593.8,0.01]
[1751570914099,0.02,2593.9,2593.8,0.01]
[1751570914819,0.02,2593.9,2593.3,26.4161425]
[1751570914820,4.61244736,2593.8,2593.3,0.02]
[1751570915018,3.85554549,2593.7,2593.3,0.02]
[1751570915216,3.85583659,2593.5,2593.3,0.02]
[1751570915417,3.855942,2593.4,2593.3,0.02]
[1751570916244,5.39880117,2593.4,2593.3,0.02]
[1751570916440,6.70488254,2593.4,2593.3,0.02]
[1751570916726,7.51221058,2593.4,2593.3,0.02]
[1751570917233,6.70488254,2593.4,2593.3,0.02]
[1751570918108,5.39880117,2593.4,2593.3,0.02]
[1751570921759,13.73402499,2593.4,2593.3,0.02]
[1751570926535,13.92682499,2593.4,2593.3,0.02]
[1751570927139,5.39880117,2593.4,2593.3,0.02]
[1751570927454,3.855942,2593.4,2593.3,0.02]
[1751570928751,0.7807,2593.6,2593.3,0.02]
[1751570929050,3.8557967,2593.5,2593.3,0.02]
[1751570929257,4.63642186,2593.6,2593.3,4.79]
[1751570930558,3.85579514,2593.5,2593.3,4.79]
[1751570931564,4.63646071,2593.6,2593.3,4.79]
[1751570931769,3.85576071,2593.6,2593.3,4.79]
[1751570934441,3.85551157,2593.7,2593.4,5.5547]
[1751570934642,3.85557973,2593.7,2593.4,5.7467]
[1751570936660,4.04742441,2593.8,2593.4,9.60263735]
[1751570937078,4.04742441,2593.8,2593.4,5.7467]
[1751570938151,4.04742441,2593.8,2593.5,4.77]
[1751570940072,3.85558738,2593.7,2593.5,4.77]
[1751570940272,3.85564466,2593.6,2593.5,4.77]
[1751570940643,5.42136786,2593.6,2593.5,4.77]
[1751570941753,6.2399224,2593.6,2593.5,4.77]
[1751570944060,3.855942,2593.4,2593.3,0.02]
[1751570945479,4.21737031,2593.4,2593.3,0.02]
[1751570951300,0.36142831,2593.4,2593.3,0.02]
[1751570951492,3.85572245,2593.6,2593.3,0.77213]
[1751570951692,0.36144542,2593.5,2593.3,0.212]
[1751570952294,3.85572245,2593.6,2593.3,0.212]
[1751570953206,3.85556387,2593.7,2593.4,0.7521]
[1751570953375,0.36141309,2593.6,2593.4,0.7521]
[1751570953576,0.36141309,2593.7,2593.4,0.7521]
[1751570953814,4.21690954,2593.7,2593.4,0.7521]
[1751570954008,0.36141309,2593.6,2593.4,0.7521]
[1751570954306,0.3613775,2593.6,2593.4,0.7521]
[1751570955004,1.1444775,2593.6,2593.3,0.212]
[1751570955207,3.855942,2593.4,2593.3,0.02]
[1751570955506,4.2173195,2593.4,2593.3,0.02]
[1751570956317,4.21736566,2593.4,2593.3,0.02]
[1751570960619,4.21738982,2593.4,2593.3,0.02]
[1751570964323,5.96913379,2593.4,2593.3,0.02]
[1751570965223,15.31305761,2593.4,2593.3,0.02]
[1751570965423,23.96651244,2593.4,2593.3,0.02]
[1751570965629,25.88651244,2593.4,2593.3,0.02]
[1751570972741,7.79728862,2593.4,2593.3,0.02]
[1751570973042,17.54520871,2593.4,2593.3,0.02]
[1751570981965,25.88043253,2593.4,2593.3,0.02]
[1751570983165,25.06005761,2593.4,2593.3,0.02]
[1751570983338,25.8801398,2593.4,2593.3,0.02]
[1751570984176,25.51869198,2593.4,2593.3,0.02]
[1751570984471,25.88018648,2593.4,2593.3,0.02]
[1751570988998,25.88064573,2593.4,2593.3,0.02]
[1751570989894,25.51915123,2593.4,2593.3,0.02]
[1751570990094,25.88075684,2593.4,2593.3,0.02]
[1751570997499,25.88105966,2593.4,2593.3,0.02]
[1751570997886,36.79564679,2593.4,2593.3,0.02]
[1751570999001,40.79564679,2593.4,2593.3,0.02]
[1751571000606,40.79564679,2593.4,2593.1,0.02]
[1751571000607,12.95116321,2593.2,2593.1,0.02]
[1751571000809,25.79839094,2593.2,2593.1,0.02]
[1751571002185,25.79839094,2593.2,2593.1,1e-08]
[1751571002186,36.47056988,2593.2,2593.1,1e-08]
[1751571002500,37.38515701,2593.2,2593.1,1e-08]
[1751571002670,37.38493913,2593.2,2593.1,1e-08]
[1751571003675,4.0491881,2593.1,2593.0,0.01]
[1751571003871,9.08119795,2593.1,2593.0,0.01]
[1751571005423,18.95230547,2593.1,2593.0,0.01]
[1751571005632,4.36169055,2593.1,2593.0,0.01]
[1751571005929,4.36169055,2593.1,2593.0,0.8166]
[1751571006449,4.21807865,2593.1,2593.0,0.8166]
[1751571006924,4.21807865,2593.1,2593.0,0.01]
[1751571009312,5.88560809,2593.1,2593.0,0.01]
[1751571011931,3.85675405,2592.9,2592.4,4.50951657]
[1751571012230,0.1928,2593.0,2592.4,0.69067429]
[1751571012231,3.85699979,2592.7,2592.4,0.69067429]
[1751571012430,3.85699979,2592.7,2592.4,0.6521]
[1751571014510,0.1928,2593.0,2592.4,0.69067429]
[1751571014737,0.1928,2593.0,2592.5,4.07003887]
[1751571014903,0.1928,2593.0,2592.6,0.47607132]
[1751571015235,4.04934991,2593.0,2592.7,0.8308]
[1751571015631,3.85675438,2592.9,2592.7,0.8308]
[1751571018407,4.04938638,2593.0,2592.7,0.8308]
[1751571018838,3.85670316,2592.9,2592.7,0.8308]
[1751571019328,3.85683431,2592.8,2592.7,0.8308]
[1751571024252,3.85683431,2592.8,2592.5,1.6265]
[1751571026682,3.87677065,2592.9,2592.5,6.0351613]
[1751571026886,3.87677065,2592.9,2592.5,2.1778924]
[1751571027484,3.87677065,2592.9,2592.5,2.2164652]
[1751571027687,3.8569248,2592.8,2592.5,2.2164652]
[1751571027886,3.87676914,2592.9,2592.5,2.1778924]
[1751571028318,3.8568411,2592.8,2592.5,2.1778924]
[1751571030370,3.85707563,2592.7,2592.5,1.6265]
[1751571030769,3.85690565,2592.8,2592.5,1.6265]
[1751571031575,3.85701518,2592.7,2592.5,1.6265]
[1751571032388,3.85692114,2592.8,2592.5,1.6265]
[1751571032881,3.85692114,2592.8,2592.5,0.9944]
[1751571034492,3.85705228,2592.7,2592.5,0.9944]
[1751571034857,3.85713183,2592.6,2592.5,0.9944]
[1751571035275,3.85705228,2592.7,2592.5,0.9944]
[1751571035804,3.85713183,2592.6,2592.5,0.02]
[1751571037061,3.85707046,2592.7,2592.5,0.02]
[1751571037257,1.01458246,2592.8,2592.5,0.02]
[1751571037463,0.36177712,2592.7,2592.6,0.7529]
[1751571037687,4.21876018,2592.7,2592.6,0.7529]
[1751571038477,3.85713183,2592.6,2592.5,0.02]
[1751571038867,3.85706856,2592.7,2592.5,0.02]
[1751571040985,0.2128,2592.8,2592.5,0.02]
[1751571041215,4.43135566,2592.8,2592.5,0.02]
[1751571041405,0.36168722,2592.7,2592.5,0.02]
[1751571041916,4.43132392,2592.8,2592.5,0.02]
[1751571042104,0.36168722,2592.7,2592.5,0.02]
[1751571042494,0.36165553,2592.7,2592.5,0.02]
[1751571043331,4.4313774,2592.8,2592.5,0.02]
[1751571043508,0.36165553,2592.7,2592.5,0.02]
[1751571045013,4.06972187,2592.8,2592.5,0.02]
[1751571045014,3.8768554,2592.8,2592.5,0.02]
[1751571045215,3.8768554,2592.8,2592.5,0.2128]
[1751571049782,3.85698338,2592.7,2592.5,0.2128]
[1751571051815,3.85713183,2592.6,2592.5,0.2128]
[1751571052483,3.85705264,2592.7,2592.5,0.2128]
[1751571052908,3.85713183,2592.6,2592.5,0.2128]
[1751571053421,3.85706355,2592.7,2592.5,0.2128]
[1751571053621,4.39365971,2592.7,2592.5,0.2128]
[1751571055911,0.53659616,2592.7,2592.5,0.2128]
[1751571056222,0.36166936,2592.7,2592.5,0.2128]
[1751571057898,3.87689084,2592.8,2592.5,0.2128]
[1751571058089,0.36166936,2592.7,2592.5,0.2128]
[1751571058829,4.21867391,2592.7,2592.5,0.2128]
[1751571059048,3.85700455,2592.7,2592.5,0.2128]
[1751571059498,3.87692583,2592.8,2592.5,0.2128]
[1751571059698,0.36173039,2592.7,2592.5,0.2128]
[1751571060201,4.21872718,2592.7,2592.5,0.2128]
[1751571060399,4.66862601,2592.7,2592.5,0.2128]
[1751571060603,4.66855977,2592.7,2592.5,0.2128]
[1751571061129,3.85713183,2592.6,2592.5,0.2128]
[1751571061522,4.21891748,2592.6,2592.5,0.2128]
[1751571062123,0.36178565,2592.6,2592.5,0.2128]
[1751571062325,4.21891748,2592.6,2592.5,0.2128]
[1751571062537,0.36178565,2592.6,2592.5,0.2128]
[1751571062843,3.85713183,2592.6,2592.5,0.2128]
[1751571063055,4.21891748,2592.6,2592.5,0.2128]
[1751571063253,0.36178565,2592.6,2592.5,0.2128]
[1751571063458,4.21891748,2592.6,2592.5,0.2128]
[1751571063659,0.36178565,2592.6,2592.5,0.2128]
[1751571064161,4.21891748,2592.6,2592.5,0.2128]
[1751571064569,0.36178565,2592.6,2592.5,0.2128]
[1751571065550,4.21891748,2592.6,2592.5,0.2128]
[1751571070260,0.36178565,2592.6,2592.5,0.2128]
[1751571071762,4.21891748,2592.6,2592.5,0.2128]
[1751571072967,4.23891748,2592.6,2592.5,0.2128]
[1751571073267,0.38178565,2592.6,2592.5,0.2128]
[1751571074866,0.38188182,2592.6,2592.5,0.2128]
[1751571076668,0.02,2592.6,2592.5,0.2128]
[1751571076874,0.38189117,2592.6,2592.5,0.2128]
[1751571084672,4.239023,2592.6,2592.5,0.2128]
[1751571085482,0.38189117,2592.6,2592.5,0.2128]
[1751571088079,4.239023,2592.6,2592.5,0.2128]
[1751571088268,5.1316911,2592.6,2592.5,0.2128]
[1751571090283,5.1316911,2592.6,2592.5,0.02]
[1751571090450,7.40521049,2592.6,2592.5,0.02]
[1751571090649,18.012022,2592.6,2592.5,0.02]
[1751571090851,13.85728061,2592.5,2592.4,0.02]
[1751571091053,4.61397585,2592.1,2591.3,0.6321]
[1751571091363,19.44176744,2592.1,2591.4,0.2128]
[1751571091571,20.26290789,2592.1,2591.4,0.02]
[1751571091768,21.94000102,2592.1,2591.4,0.02]
[1751571091965,31.94000102,2592.1,2591.4,0.02]
[1751571092287,35.82083504,2592.1,2591.4,0.02]
[1751571093569,44.67902469,2592.0,2591.9,1e-08]
[1751571093763,47.7229883,2592.0,2591.9,1e-08]
[1751571095086,15.16137354,2591.9,2591.8,1e-08]
[1751571095280,38.93841167,2591.9,2591.8,1e-08]
[1751571096793,38.5765205,2591.9,2591.8,1e-08]
[1751571096988,39.54341737,2591.9,2591.8,1e-08]
[1751571099490,15.16196905,2591.5,2591.4,1e-08]
[1751571099699,36.44102571,2591.5,2591.4,1e-08]
[1751571099856,26.56511598,2591.5,2591.4,1e-08]
[1751571100061,27.41777375,2591.5,2591.4,1e-08]
[1751571100294,26.56511598,2591.5,2591.4,1e-08]
[1751571100883,27.41738028,2591.5,2591.4,1e-08]
[1751571101082,26.56511598,2591.5,2591.4,1e-08]
[1751571101284,16.87411598,2591.5,2591.4,1e-08]
[1751571101579,26.56511598,2591.5,2591.4,1e-08]
[1751571102217,27.23729492,2591.5,2591.4,1e-08]
[1751571104518,27.23620539,2591.5,2591.4,1e-08]
[1751571105312,27.23619481,2591.5,2591.4,1e-08]
[1751571105521,26.87720956,2591.5,2591.4,1e-08]
[1751571106206,27.23615274,2591.5,2591.4,1e-08]
[1751571106406,26.87720956,2591.5,2591.4,1e-08]
[1751571106810,27.23611544,2591.5,2591.4,1e-08]
[1751571107010,27.23612464,2591.5,2591.4,1e-08]
[1751571107319,26.87720956,2591.5,2591.4,1e-08]
[1751571107496,27.23611687,2591.5,2591.4,1e-08]
[1751571107691,17.18620956,2591.5,2591.4,1e-08]
[1751571107896,25.70603062,2591.5,2591.4,1e-08]
[1751571110615,34.05702417,2591.5,2591.4,1e-08]
[1751571111411,35.0882386,2591.5,2591.4,1e-08]
[1751571113014,34.72920311,2591.5,2591.4,1e-08]
[1751571113189,35.08838668,2591.5,2591.4,1e-08]
[1751571115886,35.95784852,2591.5,2591.4,1e-08]
[1751571116105,35.95783885,2591.5,2591.4,1e-08]
[1751571116909,15.62001419,2591.5,2591.4,1e-08]
[1751571117123,6.11395262,2591.5,2591.4,0.78480001]
[1751571117302,2.0888,2591.5,2591.4,0.78480001]
[1751571117504,3.85853794,2591.7,2591.4,0.78480001]
[1751571117505,7.801,2591.7,2591.4,0.78480001]
[1751571117903,7.801,2591.7,2591.4,4.64367486]
[1751571118103,7.85794236,2592.1,2591.4,4.64367486]
[1751571118104,4.0,2592.1,2591.7,3.85844509]
[1751571118300,0.36001462,2592.0,2591.6,1.0118]
[1751571118706,11.801,2592.1,2591.6,1.0118]
[1751571119021,3.85803005,2592.0,2591.6,1.0118]
[1751571120627,11.6599284,2592.1,2591.6,4.87042005]
[1751571120938,4.21898534,2592.0,2591.6,1.92787149]
[1751571121226,3.85804292,2592.0,2591.6,1.92787149]
[1751571121396,0.36102991,2591.9,2591.7,3.85836097]
[1751571121592,0.36102991,2592.1,2591.8,0.8072]
[1751571122224,4.21892222,2592.1,2591.8,0.8072]
[1751571122404,3.85789231,2592.1,2591.8,0.8072]
[1751571123013,13.86303218,2592.2,2591.8,0.8072]
[1751571123195,0.36079637,2592.1,2591.8,0.8072]
[1751571123397,4.21868464,2592.1,2591.8,0.8072]
[1751571123694,3.85788827,2592.1,2591.8,0.8072]
[1751571124297,13.86301545,2592.2,2591.8,0.8072]
[1751571124623,3.85789155,2592.1,2591.8,0.8072]
[1751571124799,13.86302817,2592.2,2591.8,0.8072]
[1751571124995,4.16702817,2592.2,2591.8,0.8072]
[1751571125207,4.16702817,2592.2,2591.8,4.66551257]
[1751571125433,0.11642215,2592.2,2592.0,0.8086]
[1751571125758,0.02,2592.2,2592.1,4.85927585]
[1751571127737,0.02,2592.2,2592.1,1.0014]
[1751571127944,0.02,2592.2,2592.1,1.91747149]